fUSD/lending_fUSD_20260428
["ID","MTS","AMOUNT","RATE_DAILY","PERIOD"]
[421271867,1777313441351,-162.27045424,0.0002879,3]
[421271868,1777313441360,-210.67459966,0.00028799,2]
[421271869,1777313441370,-1053.0,0.000288,5]
[421271870,1777313441379,-907210.8276,0.000288,2]
[421271871,1777313441389,-1434.8757068,0.000288,2]
[421271872,1777313441398,-152.0,0.00028817,7]
[421271873,1777313441408,-6481.4866397,0.00028822,2]
[421271874,1777313441418,-150.0,0.00028899,2]
[421271875,1777313441427,-1317.0,0.000289,5]
[421271876,1777313441436,-1098834.52586192,0.000289,2]
[421271877,1777313441446,-151.0,0.000289,2]
[421271878,1777313441458,-156.7942954,0.000289,2]
[421271879,1777313441467,-33991.48,0.000289,7]
[421271880,1777313441478,-162.27045424,0.000289,7]
[421271881,1777313441487,-575.02,0.000289,7]
[421271882,1777313441497,-2090025.96284802,0.000289,2]
[421271883,1777313441506,-151.0,0.000289,7]
[421271884,1777313441516,-151.0,0.000289,7]
[421271885,1777313441525,-2000.0,0.000289,2]
[421271886,1777313441534,-500.0,0.000289,2]
[421271887,1777313441543,-162.0,0.00029071,120]
[421271888,1777313441551,-945.0,0.00029071,120]
[421271889,1777313441560,-2000.0,0.000291,2]
[421271890,1777313441570,-961.5,0.00029293,17]
[421271891,1777313441579,-2000.0,0.000293,2]
[421271892,1777313441592,-961.5,0.00029382,17]
[421271893,1777313441601,-961.5,0.00029471,17]
[421271894,1777313441610,-1081.69,0.00029499,14]
[421271895,1777313441620,-151.0,0.000295,2]
[421271896,1777313441629,-151.0,0.000295,2]
[421271897,1777313441638,-2000.0,0.000295,2]
[421271898,1777313441647,-961.5,0.0002956,17]
[421271899,1777313441656,-961.5,0.00029649,17]
[421271900,1777313441665,-1081.69,0.00029649,14]
[421271901,1777313441674,-2000.0,0.000297,2]
[421271902,1777313441684,-162.27045424,0.000297,3]
[421271903,1777313441693,-2897.06792579,0.00029725,86]
[421271904,1777313441703,-961.5,0.00029769,17]
[421271905,1777313441712,-1081.69,0.00029799,14]
[421271906,1777313441723,-961.5,0.00029859,17]
[421271907,1777313441732,-2000.0,0.000299,2]
[421271908,1777313441742,-1081.69,0.00029949,14]
[421271909,1777313441751,-961.5,0.00029949,17]
[421271910,1777313441760,-151.0,0.0003,2]
[421271911,1777313441770,-151.0,0.0003,5]
[421271912,1777313441779,-160.53168411,0.0003,2]
[421271913,1777313441789,-33991.48,0.000301,7]
[421271914,1777313441798,-162.27045424,0.000301,7]
[421271915,1777313441807,-575.02,0.000301,7]
[421271916,1777313441816,-506.0,0.000302,16]
[421271917,1777313441826,-1609.19,0.00030268,2]
[421271918,1777313441835,-189.68595179,0.00030968,2]
[421271919,1777313441844,-3035.06540061,0.00031028,89]
[421271920,1777313441854,-151.0,0.00031179,30]
[421271921,1777313441864,-158.0,0.00031179,30]
[421271922,1777313441873,-164.0,0.00031179,30]
[421271923,1777313441882,-151.0,0.00031181,30]
[421271924,1777313441891,-100000.0,0.000314,30]
[421271925,1777313441901,-100000.0,0.000315,30]
[421271926,1777313441914,-2871.59,0.000315,14]
[421271927,1777313441924,-199.79,0.000315,7]
[421271928,1777313441934,-500.0,0.00031781,60]
[421271929,1777313441944,-951.7905415,0.00031781,60]
[421271930,1777313441953,-500.0,0.00031781,60]
[421271931,1777313441963,-683.9441193,0.00031781,60]
[421271932,1777313441972,-222.5670245,0.00031781,60]
[421271933,1777313441981,-772.2051648,0.00031781,60]
[421271934,1777313441990,-500.0,0.00031781,60]
[421271935,1777313441999,-500.0,0.00031781,60]
[421271936,1777313442009,-500.0,0.00031781,60]
[421271937,1777313442018,-629.9025196,0.00031781,60]
[421271938,1777313442028,-500.0,0.00031781,60]
[421271939,1777313442037,-657.1330969,0.00031781,60]
[421271940,1777313442047,-165.5110506,0.00031781,60]
[421271941,1777313442056,-195.447561,0.00031781,60]
[421271942,1777313442066,-270.0544138,0.00031781,60]
[421271943,1777313442075,-743.7691993,0.00031781,60]
[421271944,1777313442084,-500.0,0.00031781,60]
[421271945,1777313442094,-624.9420169,0.00031781,60]
[421271946,1777313442103,-431.0979482,0.00031781,60]
[421271947,1777313442113,-26839.85530859,0.00032,4]
[421271948,1777313442123,-174745.16370601,0.00032,7]
[421271949,1777313442132,-144658.83924713,0.00032,7]
[421271950,1777313442142,-162.27045424,0.00032,7]
[421271951,1777313442151,-1159669.81814956,0.00032,7]
[421271952,1777313442161,-151.0,0.00032179,30]
[421271953,1777313442171,-151.0,0.00032181,30]
[421271954,1777313442180,-150.09777726,0.000323,120]
[421271955,1777313442189,-3277.85549759,0.00032332,92]
[421271956,1777313442198,-151.0,0.000325,2]
[421271957,1777313442208,-151.0,0.000325,5]
[421271958,1777313442218,-33991.48,0.000325,7]
[421271959,1777313442227,-575.02,0.000325,7]
[421271960,1777313442235,-200.50773742,0.00032877,5]
[421271961,1777313442244,-150.0,0.00032877,5]
[421271962,1777313442254,-150.0,0.00032877,5]
[421271963,1777313442264,-1609.19,0.00032975,2]
[421271964,1777313442273,-151.0,0.00033,5]
[421271965,1777313442283,-151.0,0.00033179,30]
[421271966,1777313442292,-157.0,0.00033181,30]
[421271967,1777313442302,-189.68595179,0.00033226,2]
[421271968,1777313442311,-6481.4866397,0.00033302,2]
[421271969,1777313442321,-199.79,0.000336,7]
[421271970,1777313442331,-500.0,0.00034158,30]
[421271971,1777313442341,-500.0,0.00034158,30]
[421271972,1777313442350,-271.72,0.00034158,30]
[421271973,1777313442359,-394.55,0.00034158,30]
[421271974,1777313442372,-151.0,0.00034179,30]
[421271975,1777313442381,-2871.59,0.000342,14]
[421271976,1777313442391,-158.0,0.000347,120]
[421271977,1777313442402,-160.09,0.0003493,40]
[421271978,1777313442411,-661.07,0.00035,120]
[421271979,1777313442420,-151.0,0.00035179,30]
[421271980,1777313442430,-33991.48,0.000352,7]
[421271981,1777313442439,-189.68595179,0.00035485,2]
[421271982,1777313442449,-1434.8757068,0.00035531,2]
[421271983,1777313442458,-1000.0,0.00035616,10]
[421271984,1777313442468,-1000.0,0.00035616,10]
[421271985,1777313442477,-1000.0,0.00035616,10]
[421271986,1777313442486,-1000.0,0.00035616,10]
[421271987,1777313442495,-1000.0,0.00035616,10]
[421271988,1777313442504,-1000.0,0.00035616,10]
[421271989,1777313442513,-1000.0,0.00035616,10]
[421271990,1777313442523,-1000.0,0.00035616,10]
[421271991,1777313442532,-1000.0,0.00035616,10]
[421271992,1777313442542,-1000.0,0.00035616,10]
[421271993,1777313442551,-1000.0,0.00035616,10]
[421271994,1777313442561,-1000.0,0.00035616,10]
[421271995,1777313442570,-1000.0,0.00035616,10]
[421271996,1777313442581,-1000.0,0.00035616,10]
[421271997,1777313442590,-1000.0,0.00035616,10]
[421271998,1777313442600,-1000.0,0.00035616,10]
[421271999,1777313442609,-1000.0,0.00035616,10]
[421272000,1777313442619,-1000.0,0.00035616,10]
[421272001,1777313442627,-1000.0,0.00035616,10]
[421272002,1777313442637,-1000.0,0.00035616,10]
[421272004,1777313442646,-1000.0,0.00035616,10]
[421272005,1777313442655,-1000.0,0.00035616,10]
[421272006,1777313442665,-936.0,0.00035616,10]
[421272007,1777313442675,-1609.19,0.00035682,2]
[421272008,1777313442684,-202.2954,0.000358,14]
[421272009,1777313442693,-575.02,0.000358,30]
[421272011,1777313442703,-151.0,0.00036179,30]
[421272012,1777313442712,-500.0,0.00036898,30]
[421272013,1777313442722,-500.0,0.00036898,30]
[421272015,1777313442732,-500.0,0.00036898,30]
[421272017,1777313442742,-500.0,0.00036898,30]
[421272019,1777313442751,-500.0,0.00036898,30]
[421272021,1777313442760,-500.0,0.00036898,30]
[421272023,1777313442769,-289.1,0.00036898,30]
[421272025,1777313442778,-236.73,0.00036898,30]
[421272027,1777313442788,-151.0,0.00037179,30]
[421272029,1777313442798,-208.49,0.00037181,2]
[421272031,1777313442807,-199.79,0.000372,7]
[421272032,1777313442816,-2871.59,0.000373,14]
[421272033,1777313442826,-189.68595179,0.00037743,2]
[421272034,1777313442836,-6481.4866397,0.00037781,2]
[421272035,1777313442845,-158.0,0.000379,120]
[421272036,1777313442855,-33991.48,0.000379,7]
[421272037,1777313442864,-197.16,0.00038034,30]
[421272038,1777313442873,-342.63708661,0.00038127,2]
[421272039,1777313442883,-342.63708661,0.00038127,2]
[421272040,1777313442892,-342.63708661,0.00038127,2]
[421272041,1777313442901,-342.63708661,0.00038127,2]
[421272042,1777313442911,-342.63708661,0.00038127,2]
[421272043,1777313442920,-342.63708661,0.00038127,2]
[421272044,1777313442929,-342.63708661,0.00038127,2]
[421272045,1777313442939,-342.63708661,0.00038127,2]
[421272046,1777313442948,-342.63708661,0.00038127,2]
[421272047,1777313442957,-342.63708661,0.00038127,2]
[421272048,1777313442966,-342.63708661,0.00038127,2]
[421272049,1777313442976,-342.63708661,0.00038127,2]
[421272050,1777313442985,-342.63708661,0.00038127,2]
[421272051,1777313442995,-342.63708661,0.00038127,2]
[421272052,1777313443004,-210.77075678,0.00038356,2]
[421272053,1777313443013,-1609.19,0.00038389,30]
[421272054,1777313443023,-13357.01,0.00038398,120]
[421272055,1777313443032,-92000.0,0.000385,30]
[421272056,1777313443041,-506.0,0.000385,23]
[421272057,1777313443051,-575.02,0.000388,30]
[421272058,1777313443060,-4435.03136844,0.00038849,106]
[421272059,1777313443070,-300.0,0.00039,120]
[421272060,1777313443079,-1250.93,0.00039,39]
[421272061,1777313443088,-250.0,0.00039,120]
[421272062,1777313443097,-199.79,0.000392,30]
[421272063,1777313443107,-1000.0,0.00039315,14]
[421272064,1777313443116,-1000.0,0.00039315,14]
[421272065,1777313443126,-1000.0,0.00039315,14]
[421272066,1777313443136,-1000.0,0.00039315,14]
[421272067,1777313443145,-1000.0,0.00039315,14]
[421272068,1777313443155,-1000.0,0.00039315,14]
[421272069,1777313443164,-1000.0,0.00039315,14]
[421272070,1777313443174,-1000.0,0.00039315,14]
[421272071,1777313443183,-100000.0,0.000395,30]
[421272072,1777313443193,-250.0,0.000395,120]
[421272073,1777313443203,-2871.59,0.000395,14]
[421272074,1777313443213,-500.0,0.00039638,30]
[421272075,1777313443222,-500.0,0.00039638,30]
[421272076,1777313443232,-500.0,0.00039638,30]
[421272077,1777313443241,-500.0,0.00039638,30]
[421272078,1777313443251,-500.0,0.00039638,30]
[421272079,1777313443261,-500.0,0.00039638,30]
[421272080,1777313443278,-289.1,0.00039638,30]
[421272081,1777313443291,-236.73,0.00039638,30]
[421272082,1777313443301,-331.0,0.0003967,120]
[421272083,1777313443311,-500.0,0.00039686,60]
[421272084,1777313443320,-4553.35012422,0.000399,2]
[421272085,1777313443330,-2132.151144,0.0004,120]
[421272086,1777313443340,-400.0,0.0004,30]
[421272087,1777313443350,-2000.0,0.0004,60]
[421272088,1777313443360,-161.0,0.0004,120]
[421272089,1777313443370,-250.0,0.0004,120]
[421272090,1777313443380,-1286.79601366,0.0004,100]
[421272091,1777313443390,-189.68595179,0.00040001,2]
[421272092,1777313443400,-33991.48,0.000401,7]
[421272093,1777313443409,-250.0,0.000405,120]
[421272094,1777313443419,-4317.20067,0.000405,120]
[421272095,1777313443428,-1392.26347149,0.00040658,120]
[421272096,1777313443438,-3948.99609102,0.0004074,2]
[421272097,1777313443448,-150.0,0.00040758,120]
[421272098,1777313443458,-575.02,0.000408,30]
[421272099,1777313443467,-500.0,0.00040853,60]
[421272100,1777313443477,-300.0,0.0004095,5]
[421272101,1777313443487,-300.0,0.0004095,5]
[421272102,1777313443496,-300.0,0.0004095,5]
[421272103,1777313443506,-300.0,0.0004095,5]
[421272104,1777313443516,-300.0,0.0004095,5]
[421272105,1777313443525,-213882.0,0.0004095,60]
[421272106,1777313443535,-4999.999999,0.00040984,31]
[421272107,1777313443545,-3200.0,0.00041,120]
[421272108,1777313443555,-300.0,0.00041,120]
[421272109,1777313443564,-1000.0,0.00041,120]
[421272110,1777313443573,-1000.0,0.00041,120]
[421272111,1777313443583,-1009.0,0.00041,120]
[421272112,1777313443592,-1000.0,0.00041,120]
[421272113,1777313443602,-270.0,0.00041,120]
[421272114,1777313443612,-1339.59935252,0.00041,15]
[421272115,1777313443622,-1609.19,0.00041095,30]
[421272116,1777313443631,-303.43349385,0.00041096,120]
[421272117,1777313443641,-151.0,0.00041096,120]
[421272118,1777313443650,-151.0,0.00041096,120]
[421272119,1777313443659,-151.0,0.00041096,120]
[421272120,1777313443669,-151.0,0.00041096,120]
[421272121,1777313443678,-151.0,0.00041096,120]
[421272122,1777313443687,-151.0,0.00041096,120]
[421272123,1777313443697,-151.0,0.00041096,120]
[421272124,1777313443707,-151.0,0.00041096,120]
[421272125,1777313443716,-193.428653,0.00041096,120]
[421272126,1777313443725,-151.0,0.00041096,120]
[421272127,1777313443734,-151.0,0.00041096,120]
[421272128,1777313443745,-151.0,0.00041096,120]
[421272129,1777313443755,-151.0,0.00041096,120]
[421272130,1777313443764,-151.0,0.00041096,120]
[421272131,1777313443774,-151.0,0.00041096,120]
[421272132,1777313443783,-151.0,0.00041096,120]
[421272133,1777313443793,-151.0,0.00041096,120]
[421272134,1777313443802,-151.0,0.00041096,120]
[421272135,1777313443811,-223.752967,0.00041096,120]
[421272136,1777313443820,-2166.807549,0.00041096,120]
[421272137,1777313443830,-2166.807549,0.00041096,120]
[421272138,1777313443839,-2166.807549,0.00041096,120]
[421272139,1777313443848,-2166.807549,0.00041096,120]
[421272140,1777313443858,-2166.807549,0.00041096,120]
[421272141,1777313443868,-2166.807549,0.00041096,120]
[421272142,1777313443877,-2166.807549,0.00041096,120]
[421272143,1777313443886,-2166.807549,0.00041096,120]
[421272144,1777313443896,-2166.807549,0.00041096,120]
[421272146,1777313443905,-2166.807549,0.00041096,120]
[421272148,1777313443914,-2166.807549,0.00041096,120]
[421272150,1777313443923,-2166.807549,0.00041096,120]
[421272152,1777313443932,-2166.807549,0.00041096,120]
[421272154,1777313443941,-2166.807549,0.00041096,120]
[421272156,1777313443951,-2166.807549,0.00041096,120]
[421272158,1777313443960,-2166.807549,0.00041096,120]
[421272160,1777313443969,-2166.807549,0.00041096,120]
[421272162,1777313443978,-2166.807549,0.00041096,120]
[421272164,1777313443987,-2166.807549,0.00041096,120]
[421272165,1777313443997,-2166.80754,0.00041096,120]
[421272166,1777313444006,-200.0,0.000411,120]
[421272167,1777313444015,-200.0,0.00041239,120]
[421272168,1777313444024,-125075.0,0.000413,60]
[421272169,1777313444034,-500.0,0.00041356,120]
[421272171,1777313444043,-500.0,0.00041356,120]
[421272173,1777313444052,-204.04132994,0.00041359,13]
[421272174,1777313444062,-204.04132992,0.00041359,13]
[421272175,1777313444071,-204.04132992,0.00041359,13]
[421272176,1777313444080,-204.04132992,0.00041359,13]
[421272177,1777313444089,-204.04132992,0.00041359,13]
[421272179,1777313444099,-204.04132992,0.00041359,13]
[421272181,1777313444108,-204.04132992,0.00041359,13]
[421272182,1777313444118,-205.5,0.000414,120]
[421272183,1777313444127,-6678.5,0.00041452,120]
[421272184,1777313444136,-1002.6,0.000415,120]
[421272185,1777313444145,-1000.0,0.000415,120]
[421272186,1777313444154,-500.0,0.0004161,30]
[421272187,1777313444163,-500.0,0.0004161,30]
[421272188,1777313444173,-500.0,0.0004161,30]
[421272189,1777313444182,-500.0,0.0004161,30]
[421272190,1777313444191,-500.0,0.0004161,30]
[421272191,1777313444200,-500.0,0.0004161,30]
[421272192,1777313444210,-289.1,0.0004161,30]
[421272193,1777313444219,-236.73,0.0004161,30]
[421272194,1777313444228,-12335.0,0.000417,117]
[421272195,1777313444238,-33991.48,0.000418,7]
[421272196,1777313444247,-200.0,0.00041854,30]
[421272197,1777313444257,-500.0,0.00041857,120]
[421272198,1777313444265,-20000.0,0.0004188,120]
[421272199,1777313444275,-1000.0,0.000419,120]
[421272200,1777313444284,-250000.0,0.000419,30]
[421272201,1777313444294,-280.0,0.0004197,93]
[421272202,1777313444304,-180.01,0.00041977,120]
[421272203,1777313444313,-460.0,0.00041986,120]
[421272204,1777313444323,-163.2,0.00041999,7]
[421272205,1777313444332,-500.0,0.00041999,30]
[421272206,1777313444345,-8565.75555911,0.00041999,30]
[421272207,1777313444354,-500.0,0.00041999,30]
[421272208,1777313444364,-500.0,0.00041999,42]
[421272209,1777313444373,-8882.6885148,0.00041999,42]
[421272210,1777313444383,-500.0,0.00041999,42]
[421272211,1777313444392,-151.0,0.00041999,30]
[421272212,1777313444401,-500.0,0.00041999,90]
[421272213,1777313444411,-9211.34798985,0.00041999,90]
[421272214,1777313444421,-500.0,0.00041999,90]
[421272215,1777313444430,-151.0,0.00041999,42]
[421272216,1777313444440,-151.0,0.00041999,90]
[421272217,1777313444449,-500.0,0.00041999,30]
[421272218,1777313444457,-500.0,0.00041999,42]
[421272219,1777313444467,-500.0,0.00041999,90]
[421272220,1777313444476,-104388.50991812,0.00042,30]
[421272221,1777313444501,-850.0,0.00019948,2]
[421272222,1777313444510,-52913.49999984,0.00042,30]
[421272223,1777313444535,-582.44356646,0.00027889,10]
[421272224,1777313444588,-455.0,0.0002556,2]
[421272225,1777313444598,-345.76947126,0.00027889,10]
[421272226,1777313444610,-519.64696228,0.00027889,10]
[421272227,1777313444621,-294.329726,0.000289,7]
[421272228,1777313444630,-1944.0,0.00032332,30]
[421272229,1777313444639,-38749.35500112,0.00042,30]
[421272230,1777313444651,-356.68,0.00042,30]
[421272231,1777313444663,-440.03944352,0.00042,30]
[421272232,1777313444675,-316.54370578,0.00042,30]
[421272233,1777313444686,-77700.0,0.00042,30]
[421272248,1777313446315,-261.77565251,0.0004074,2]
[421272860,1777314632035,-280.0,8.219e-05,2]
[421272861,1777314632046,-1200.0,8.225e-05,2]
[421272862,1777314632055,-338.48866119,8.226e-05,2]
[421272863,1777314632069,-5000.0,8.226e-05,2]
[421272864,1777314632079,-5000.0,8.232e-05,2]
[421272865,1777314632088,-150.0,9.04e-05,2]
[421272866,1777314632098,-300.0,9.041e-05,2]
[421272867,1777314632108,-511.37933122,9.041e-05,2]
[421272868,1777314632119,-4488.62066878,9.041e-05,2]
[421272869,1777314632129,-500.0,9.041e-05,2]
[421272870,1777314632138,-300.0,9.041e-05,2]
[421272871,1777314632147,-5000.0,9.041e-05,2]
[421272872,1777314632157,-300.0,9.041e-05,2]
[421272873,1777314632168,-5000.0,9.041e-05,2]
[421272874,1777314632177,-267.43319798,9.041e-05,2]
[421272875,1777314632187,-250.0,9.041e-05,2]
[421272876,1777314632196,-300.0,9.041e-05,2]
[421272877,1777314632206,-1680.0,9.047e-05,2]
[421272878,1777314632215,-255.0,9.944e-05,2]
[421272879,1777314632225,-1920.0,9.952e-05,2]
[421272880,1777314632234,-32155.72259935,0.000105,2]
[421272881,1777314632247,-209276.41297397,0.000105,2]
[421272882,1777314632258,-188922.96222177,0.000105,2]
[421272945,1777314640483,-526.82996744,0.00010499,2]
[421272946,1777314640647,-47.33759177,0.00010499,2]
[421272947,1777314640657,-199.70733861,0.00010499,2]
[421272948,1777314640667,-281.6252311,0.00010499,2]
[421272949,1777314640676,-528.46369319,0.00010499,2]
[421272950,1777314640686,-582.75869699,0.000105,2]
[421272951,1777314640702,-788.88103351,0.000105,2]
[421272952,1777314640763,-402.78884823,0.000105,2]
[421272958,1777314643342,-628.55417285,0.000105,2]
[421272959,1777314643467,-5943.59986885,0.000105,2]
[421272960,1777314643479,-1027.23724345,0.000105,2]
[421272961,1777314643492,-1579.54368736,0.000105,2]
[421272962,1777314643508,-98160.07209657,0.000105,2]
[421272970,1777314646294,-3176.73699666,0.000105,2]
[421272971,1777314646306,-4965.39420555,0.000105,2]
[421272972,1777314646408,-275734.11885489,0.000105,2]
[421272973,1777314646416,-300.0,0.00010598,2]
[421272974,1777314646426,-259.0,0.000106,2]
[421272975,1777314646434,-9999.99,0.00013699,2]
[421272976,1777314646444,-519.24,0.00013699,2]
[421272977,1777314646453,-2748.33,0.00013699,2]
[421272978,1777314646463,-1552.8,0.00013699,2]
[421272979,1777314646472,-171.45,0.00013699,2]
[421272980,1777314646482,-299.99,0.00013699,2]
[421272981,1777314646493,-150.99,0.00013699,2]
[421272982,1777314646502,-368.70813781,0.00013699,2]
[421272983,1777314646512,-1074.0,0.00014517,2]
[421272984,1777314646521,-160.0,0.00015,2]
[421272985,1777314646530,-1374.91,0.00015049,2]
[421272986,1777314646542,-9999.99,0.00015049,2]
[421272987,1777314646551,-162.27045424,0.00015049,2]
[421272988,1777314646561,-180.0,0.000166,12]
[421272989,1777314646570,-250.2,0.00019179,2]
[421272990,1777314646580,-158.1139,0.0002,2]
[421272991,1777314646589,-300.0,0.00021,2]
[421272992,1777314646598,-160.0,0.00021598,2]
[421272993,1777314646607,-153.73,0.00022466,2]
[421272994,1777314646616,-543.431,0.00023649,2]
[421272995,1777314646626,-2475.0,0.000239,2]
[421272996,1777314646635,-150.0,0.00024658,2]
[421272997,1777314646644,-1050.0,0.000249,2]
[421272998,1777314646653,-300.0,0.000249,7]
[421272999,1777314646663,-150.0,0.0002589,2]
[421273000,1777314646673,-1379.708,0.000269,2]
[421273001,1777314646682,-150.0,0.00027185,2]
[421273002,1777314646692,-314.7406,0.00027298,2]
[421273003,1777314646701,-4158.2834,0.00027298,2]
[421273004,1777314646711,-196.71235302,0.00027397,2]
[421273005,1777314646720,-194.6,0.00027398,2]
[421273006,1777314646729,-159.55,0.00028,2]
[421273007,1777314646739,-150.0,0.00028416,2]
[421273008,1777314646748,-150.0,0.00028416,2]
[421273009,1777314646757,-200.0,0.00028416,2]
[421273010,1777314646766,-150.0,0.00028416,2]
[421273011,1777314646776,-150.0,0.00028416,2]
[421273012,1777314647032,-161.88955031,0.00028416,2]
[421273013,1777314647051,-500.0,0.00028416,2]
[421273014,1777314647061,-500.0,0.00028416,2]
[421273015,1777314647071,-500.0,0.00028416,2]
[421273016,1777314647080,-500.0,0.00028416,2]
[421273017,1777314647089,-500.0,0.00028416,2]
[421273018,1777314647099,-500.0,0.00028416,2]
[421273019,1777314647108,-500.0,0.00028416,2]
[421273020,1777314647117,-500.0,0.00028416,2]
[421273021,1777314647126,-500.0,0.00028416,2]
[421273022,1777314647135,-500.0,0.00028416,2]
[421273023,1777314647144,-500.0,0.00028416,2]
[421273024,1777314647154,-500.0,0.00028416,2]
[421273025,1777314647164,-500.0,0.00028416,2]
[421273026,1777314647173,-500.0,0.00028416,2]
[421273027,1777314647183,-500.0,0.00028416,2]
[421273028,1777314647193,-150.0,0.00028416,2]
[421273029,1777314647202,-500.0,0.00028416,2]
[421273030,1777314647212,-150.0,0.00028416,2]
[421273031,1777314647221,-500.0,0.00028416,2]
[421273032,1777314647231,-156.40259882,0.00028416,2]
[421273033,1777314647240,-500.0,0.00028416,2]
[421273034,1777314647250,-500.0,0.00028416,2]
[421273035,1777314647259,-445.29824876,0.00028416,2]
[421273036,1777314647269,-150.0,0.00028544,2]
[421273037,1777314647279,-2043.0,0.00028734,10]
[421273038,1777314647288,-405.0,0.00028734,10]
[421273039,1777314647298,-639.88,0.00029471,23]
[421273040,1777314647307,-313.0,0.000297,2]
[421273041,1777314647317,-1234.41823051,0.0003,2]
[421273042,1777314647326,-153.0,0.00031181,30]
[421273043,1777314647336,-562.4710085,0.00031775,60]
[421273044,1777314647345,-215.5489741,0.00031775,60]
[421273045,1777314647354,-153.0,0.00032181,30]
[421273046,1777314647363,-194.6,0.00032723,7]
[421273047,1777314647373,-153.0,0.00033181,30]
[421273048,1777314647382,-153.0,0.00034181,30]
[421273049,1777314647392,-153.0,0.00035181,30]
[421273050,1777314647401,-153.0,0.00036181,30]
[421273051,1777314647411,-500.0,0.00036186,60]
[421273052,1777314647420,-507.88840085,0.00036186,60]
[421273053,1777314647429,-152.0,0.00036586,3]
[421273054,1777314647438,-1109.58,0.00037171,10]
[421273055,1777314647448,-153.0,0.00037181,30]
[421273056,1777314647458,-150.0,0.000378,7]
[421273057,1777314647468,-194.61,0.00038049,30]
[421273058,1777314647477,-581.86,0.00038111,10]
[421273059,1777314647486,-342.63708661,0.00038121,2]
[421273060,1777314647496,-342.63708661,0.00038121,2]
[421273061,1777314647505,-253.12876928,0.00038356,2]
[421273062,1777314647515,-1099.0,0.00038364,120]
[421273063,1777314647524,-205.2,0.00038653,2]
[421273064,1777314647533,-199.08,0.00038653,2]
[421273065,1777314647542,-257.41186571,0.00038974,14]
[421273066,1777314647551,-924.65,0.0003999,10]
[421273067,1777314647561,-770.54,0.0003999,10]
[421273068,1777314647571,-1000.0,0.0004,15]
[421273070,1777314647580,-1000.0,0.0004,15]
[421273071,1777314647590,-1000.0,0.0004,15]
[421273072,1777314647600,-1000.0,0.0004,15]
[421273073,1777314647610,-1000.0,0.0004,15]
[421273074,1777314647620,-1000.0,0.0004,15]
[421273075,1777314647629,-1000.0,0.0004,15]
[421273076,1777314647639,-1000.0,0.0004,15]
[421273077,1777314647648,-10409.39,0.00040382,120]
[421273078,1777314647658,-200.0,0.00040414,20]
[421273079,1777314647667,-2545.40550985,0.0004074,2]
[421273080,1777314647677,-257.41186571,0.0004074,21]
[421273081,1777314647686,-2000.0,0.0004074,120]
[421273082,1777314647695,-350.0,0.00040817,2]
[421273083,1777314647704,-2000.0,0.0004094,120]
[421273084,1777314647714,-1609.19,0.00041095,30]
[421273085,1777314647724,-500.0,0.00041096,2]
[421273086,1777314647733,-160.0,0.0004114,120]
[421273087,1777314647742,-2000.0,0.0004114,120]
[421273088,1777314647752,-2000.0,0.0004134,120]
[421273089,1777314647761,-500.0,0.00041356,120]
[421273090,1777314647771,-500.0,0.00041356,120]
[421273091,1777314647780,-204.04132992,0.00041361,13]